fUSD/lending_fUSD_20260224
["ID","MTS","AMOUNT","RATE_DAILY","PERIOD"]
[406554243,1771937517495,-500.0,0.00010123,2]
[406554244,1771937517529,-500.0,0.00010123,2]
[406554245,1771937517560,-193.46031642,0.00010123,2]
[406554246,1771937517718,-306.53968358,0.00010123,2]
[406554247,1771937517744,-172.7620302,0.00010123,2]
[406554248,1771937517771,-500.0,0.00010123,2]
[406554249,1771937517802,-500.0,0.00010123,2]
[406554250,1771937517832,-500.0,0.00010123,2]
[406554251,1771937517862,-500.0,0.00010123,2]
[406554252,1771937517892,-500.0,0.00010123,2]
[406554253,1771937517923,-500.0,0.00010123,2]
[406554254,1771937517953,-500.0,0.00010123,2]
[406554255,1771937517982,-500.0,0.00010123,2]
[406554256,1771937518012,-500.0,0.00010123,2]
[406554257,1771937518139,-500.0,0.00010123,2]
[406554258,1771937518170,-500.0,0.00010123,2]
[406554259,1771937518200,-500.0,0.00010123,2]
[406554260,1771937518229,-325.95222713,0.00010123,2]
[406554261,1771937518259,-500.0,0.00010123,2]
[406554262,1771937518289,-500.0,0.00010123,2]
[406554263,1771937518320,-500.0,0.00010123,2]
[406554264,1771937518350,-500.0,0.00010123,2]
[406554265,1771937518380,-500.0,0.00010123,2]
[406554266,1771937518410,-500.0,0.00010123,2]
[406554267,1771937518477,-500.0,0.00010123,2]
[406554268,1771937518509,-500.0,0.00010123,2]
[406554269,1771937518542,-500.0,0.00010123,2]
[406554270,1771937518572,-500.0,0.00010123,2]
[406554271,1771937518602,-500.0,0.00010123,2]
[406554272,1771937518634,-500.0,0.00010123,2]
[406554273,1771937518665,-500.0,0.00010123,2]
[406554274,1771937518695,-500.0,0.00010123,2]
[406554275,1771937518726,-500.0,0.00010123,2]
[406554276,1771937518755,-500.0,0.00010123,2]
[406554277,1771937518886,-500.0,0.00010123,2]
[406554278,1771937518918,-500.0,0.00010123,2]
[406554279,1771937518949,-500.0,0.00010123,2]
[406554280,1771937518979,-500.0,0.00010123,2]
[406554281,1771937519011,-500.0,0.00010123,2]
[406554282,1771937519042,-500.0,0.00010123,2]
[406554283,1771937519073,-500.0,0.00010123,2]
[406554284,1771937519104,-500.0,0.00010123,2]
[406554285,1771937519135,-500.0,0.00010123,2]
[406554286,1771937519166,-500.0,0.00010123,2]
[406554287,1771937519458,-500.0,0.00010123,2]
[406554288,1771937519494,-528.47682913,0.00010123,2]
[406554289,1771937519527,-528.47682913,0.00010123,2]
[406554290,1771937519560,-528.47682913,0.00010123,2]
[406554291,1771937519590,-528.47682913,0.00010123,2]
[406554292,1771937519619,-528.47682913,0.00010123,2]
[406554293,1771937519649,-528.47682913,0.00010123,2]
[406554294,1771937519678,-528.47682913,0.00010123,2]
[406554295,1771937519707,-528.47682913,0.00010123,2]
[406554296,1771937519738,-15.90390479,0.00010123,2]
[406554297,1771937521072,-334.34533298,0.00010123,2]
[406554298,1771937521086,-178.22759136,0.00010123,2]
[406554299,1771937521095,-350.24923777,0.00010123,2]
[406554300,1771937521121,-178.22759136,0.00010123,2]
[406554301,1771937521130,-350.24923777,0.00010123,2]
[406554302,1771937521189,-178.22759136,0.00010123,2]
[406554303,1771937521220,-528.47682913,0.00010123,2]
[406554304,1771937521251,-528.47682913,0.00010123,2]
[406554305,1771937521282,-528.47682913,0.00010123,2]
[406554306,1771937521313,-528.47682913,0.00010123,2]
[406554307,1771937521346,-528.47682913,0.00010123,2]
[406554308,1771937521377,-528.47682913,0.00010123,2]
[406554309,1771937521412,-528.47682913,0.00010123,2]
[406554310,1771937521443,-528.47682913,0.00010123,2]
[406554311,1771937521482,-528.47682913,0.00010123,2]
[406554312,1771937521553,-528.47682913,0.00010123,2]
[406554313,1771937521586,-528.47682913,0.00010123,2]
[406554314,1771937521617,-528.47682913,0.00010123,2]
[406554315,1771937521823,-528.47682913,0.00010123,2]
[406554316,1771937521856,-528.47682913,0.00010123,2]
[406554317,1771937521887,-528.47682913,0.00010123,2]
[406554318,1771937521919,-528.47682913,0.00010123,2]
[406554319,1771937521951,-528.47682913,0.00010123,2]
[406554320,1771937521982,-528.47682913,0.00010123,2]
[406554321,1771937522063,-528.47682913,0.00010123,2]
[406554322,1771937522095,-528.47682913,0.00010123,2]
[406554323,1771937522125,-528.47682913,0.00010123,2]
[406554324,1771937522155,-528.47682913,0.00010123,2]
[406554325,1771937522186,-528.47682913,0.00010123,2]
[406554326,1771937522216,-528.47682913,0.00010123,2]
[406554327,1771937522246,-528.47682913,0.00010123,2]
[406554328,1771937522277,-434.94877752,0.00010123,2]
[406554329,1771937522899,1731.43683714,0.00010024,2]
[406554330,1771937523271,-8268.57316286,0.00010024,2]
[406554331,1771937523411,-10000.01,0.00010024,2]
[406554332,1771937523552,-10000.01,0.00010024,2]
[406554333,1771937524426,-10000.01,0.00010024,2]
[406554334,1771937527221,-955.47737525,0.00010024,2]
[406554335,1771937527327,-5000.01,0.00010024,2]
[406554336,1771937527442,-5000.01,0.00010024,2]
[406554337,1771937527548,-5000.01,0.00010024,2]
[406554338,1771937527664,-5000.01,0.00010024,2]
[406554339,1771937529471,-5000.01,0.00010024,2]
[406554340,1771937529599,-5000.01,0.00010024,2]
[406554341,1771937529685,-5000.01,0.00010024,2]
[406554342,1771937529791,-5000.01,0.00010024,2]
[406554343,1771937530127,-5000.01,0.00010024,2]
[406554344,1771937530152,-5000.01,0.00010024,2]
[406554345,1771937530175,-5000.01,0.00010024,2]
[406554346,1771937530268,-5000.01,0.00010024,2]
[406554347,1771937530370,-5000.01,0.00010024,2]
[406554349,1771937585809,693.90361076,9.924e-05,2]
[406554350,1771937656572,3237.37116568,9.924e-05,2]
[406554351,1771937663698,1068.73522356,9.924e-05,2]
[406554352,1771937663720,5000.01,9.924e-05,2]
[406554353,1771937663741,2241.89855906,9.924e-05,2]
[406554354,1771937664272,2758.11144094,9.973e-05,2]
[406554355,1771937664293,4165.35227206,9.973e-05,2]
[406554359,1771938003855,300.0,9.923e-05,7]
[406554361,1771938073463,-500.0,9.923e-05,2]
[406554362,1771938073495,-500.0,9.923e-05,2]
[406554363,1771938073527,-500.0,9.923e-05,2]
[406554364,1771938073560,-500.0,9.923e-05,2]
[406554365,1771938073591,-362.07457055,9.923e-05,2]
[406554366,1771938073856,-500.0,9.923e-05,2]
[406554367,1771938073888,-500.0,9.923e-05,2]
[406554368,1771938073921,-500.0,9.923e-05,2]
[406554369,1771938073952,-500.0,9.923e-05,2]
[406554370,1771938073983,-500.0,9.923e-05,2]
[406554371,1771938074074,-500.0,9.923e-05,2]
[406554373,1771938092809,2980.821,9.725e-05,2]
[406554374,1771938092934,246.253,9.725e-05,2]
[406554375,1771938141435,772.936,9.824e-05,2]
[406554376,1771938141458,5000.01,9.824e-05,2]
[406554377,1771938141482,5000.01,9.824e-05,2]
[406554378,1771938141505,5000.01,9.824e-05,2]
[406554379,1771938141530,5000.01,9.824e-05,2]
[406554380,1771938188101,5000.01,7.945e-05,2]
[406554381,1771938188127,5416.592158,7.945e-05,2]
[406554404,1771938631789,-300.0,9.599e-05,2]
[406554405,1771938631803,-5546.73355679,9.599e-05,2]
[406554406,1771938631812,-562.30573516,9.6e-05,2]
[406554407,1771938631821,-974.61147035,9.6e-05,2]
[406554408,1771938631831,-1304.45605845,9.6e-05,2]
[406554409,1771938631841,-2376.45096987,9.6e-05,2]
[406554410,1771938631851,-155.746908,9.617e-05,2]
[406554411,1771938631860,-8553.59993653,9.67e-05,2]
[406554412,1771938631870,-250.0,9.67e-05,2]
[406554413,1771938631879,-500.0,9.723e-05,2]
[406554414,1771938631888,-500.0,9.723e-05,2]
[406554415,1771938631898,-500.0,9.723e-05,2]
[406554416,1771938631907,-500.0,9.723e-05,2]
[406554417,1771938631916,-500.0,9.723e-05,2]
[406554418,1771938631929,-500.0,9.723e-05,2]
[406554419,1771938631938,-500.0,9.723e-05,2]
[406554420,1771938631947,-500.0,9.723e-05,2]
[406554421,1771938631956,-586.20745705,9.723e-05,2]
[406554422,1771938631966,-500.0,9.723e-05,2]
[406554423,1771938631975,-500.0,9.723e-05,2]
[406554424,1771938631984,-500.0,9.723e-05,2]
[406554425,1771938631994,-500.0,9.723e-05,2]
[406554427,1771938632003,-500.0,9.723e-05,2]
[406554429,1771938632012,-500.0,9.723e-05,2]
[406554430,1771938632022,-500.0,9.723e-05,2]
[406554432,1771938632031,-500.0,9.723e-05,2]
[406554434,1771938632039,-500.0,9.723e-05,2]
[406554436,1771938632049,-500.0,9.723e-05,2]
[406554438,1771938632058,-500.0,9.723e-05,2]
[406554440,1771938632067,-500.0,9.723e-05,2]
[406554442,1771938632076,-500.0,9.723e-05,2]
[406554444,1771938632085,-500.0,9.723e-05,2]
[406554446,1771938632094,-500.0,9.723e-05,2]
[406554448,1771938632104,-500.0,9.723e-05,2]
[406554450,1771938632113,-500.0,9.723e-05,2]
[406554453,1771938632122,-500.0,9.723e-05,2]
[406554457,1771938632132,-500.0,9.723e-05,2]
[406554459,1771938632141,-500.0,9.723e-05,2]
[406554461,1771938632150,-500.0,9.723e-05,2]
[406554462,1771938632159,-500.0,9.723e-05,2]
[406554465,1771938632169,-500.0,9.723e-05,2]
[406554467,1771938632179,-500.0,9.723e-05,2]
[406554469,1771938632188,-608.62074571,9.723e-05,2]
[406554470,1771938632198,-500.0,9.723e-05,2]
[406554472,1771938632207,-500.0,9.723e-05,2]
[406554474,1771938632217,-500.0,9.723e-05,2]
[406554476,1771938632227,-500.0,9.723e-05,2]
[406554478,1771938632236,-500.0,9.723e-05,2]
[406554480,1771938632246,-500.0,9.723e-05,2]
[406554482,1771938632255,-150.0,9.723e-05,2]
[406554484,1771938632265,-557.8906,9.724e-05,2]
[406554487,1771938632278,-39555.86872331,9.724e-05,2]
[406554489,1771938632290,-14166.62972251,9.724e-05,2]
[406554492,1771938632302,-52979.41745107,9.724e-05,2]
[406554494,1771938632313,-49498.97483524,9.724e-05,2]
[406554501,1771938632375,-6931.74141206,9.724e-05,2]
[406554533,1771938637871,-7060.92014268,9.724e-05,2]
[406554534,1771938637883,-1972.78274802,9.724e-05,2]
[406554535,1771938637927,-459081.53621572,9.724e-05,2]
[406554552,1771938640018,-7501.42315037,9.724e-05,2]
[406554553,1771938640029,-3091.41082044,9.724e-05,2]
[406554554,1771938640039,-2379.83911014,9.724e-05,2]
[406554555,1771938640562,-16981.27100685,9.724e-05,2]
[406554556,1771938640572,-34646.86462584,9.724e-05,2]
[406554557,1771938640583,-2987.2,9.724e-05,2]
[406554558,1771938640593,-2095.592,9.724e-05,2]
[406554559,1771938640603,-1603.7496992,9.724e-05,2]
[406554568,1771938643343,-2600.62297644,9.724e-05,2]
[406554578,1771938645973,-24262.89181765,9.724e-05,2]
[406554595,1771938667986,824.998639,7.945e-05,2]
[406554596,1771938848415,308.03434307,9.5e-05,2]
[406554597,1771939104777,1383.21,5.634e-05,2]
[406554598,1771939104983,1383.21,5.832e-05,2]
[406554599,1771939105194,1383.21,6.03e-05,2]
[406554600,1771939105420,1383.21,6.227e-05,2]
[406554601,1771939105641,1383.21,6.425e-05,2]
[406554602,1771939105873,1383.21,6.623e-05,2]
[406554603,1771939106078,1383.21,6.82e-05,2]
[406554604,1771939106314,317.54,7.018e-05,2]
[406554605,1771939106336,1065.67,7.018e-05,2]
[406554606,1771939106540,1383.21,7.216e-05,2]
[406554607,1771939106772,1383.21,7.414e-05,2]
[406554608,1771939106999,1383.21,7.611e-05,2]
[406554609,1771939107197,1383.21,7.809e-05,2]
[406554610,1771939107428,1383.21,8.007e-05,2]
[406554611,1771939107834,1383.21,8.204e-05,2]
[406554612,1771939108035,635.08,8.402e-05,2]
[406554613,1771939108058,748.13,8.402e-05,2]
[406554614,1771939108364,1383.21,8.6e-05,2]
[406554615,1771939108579,1383.21,8.797e-05,2]
[406554616,1771939108777,1383.21,8.995e-05,2]
[406554617,1771939108995,1383.21,9.193e-05,2]
[406554618,1771939109197,1383.21,9.391e-05,2]
[406554619,1771939110498,1200.0,9.522e-05,2]
[406554620,1771939114057,-353.498286,9.523e-05,2]
[406554621,1771939114148,500.0,9.522e-05,2]
[406554622,1771939114197,500.0,9.522e-05,2]
[406554623,1771939114241,500.0,9.522e-05,2]
[406554624,1771939114272,500.0,9.522e-05,2]
[406554625,1771939114310,500.0,9.522e-05,2]
[406554626,1771939114354,500.0,9.522e-05,2]
[406554627,1771939114400,500.0,9.522e-05,2]
[406554628,1771939114444,500.0,9.522e-05,2]
[406554629,1771939114479,293.013428,9.522e-05,2]
[406554630,1771939114502,206.986572,9.522e-05,2]
[406554631,1771939114538,500.0,9.522e-05,2]
[406554632,1771939114570,500.0,9.522e-05,2]
[406554633,1771939114606,500.0,9.522e-05,2]
[406554634,1771939114637,500.0,9.522e-05,2]
[406554635,1771939114682,500.0,9.522e-05,2]
[406554636,1771939114717,500.0,9.522e-05,2]
[406554637,1771939114773,500.0,9.522e-05,2]
[406554638,1771939114808,500.0,9.522e-05,2]
[406554639,1771939114845,500.0,9.522e-05,2]
[406554640,1771939114877,293.023428,9.522e-05,2]
[406554641,1771939114901,206.976572,9.522e-05,2]
[406554642,1771939114936,634.86222523,9.522e-05,2]
[406554643,1771939114971,500.0,9.522e-05,2]
[406554644,1771939115024,500.0,9.522e-05,2]
[406554645,1771939115071,500.0,9.522e-05,2]
[406554646,1771939115122,500.0,9.522e-05,2]
[406554647,1771939115153,500.0,9.522e-05,2]
[406554648,1771939115184,500.0,9.522e-05,2]
[406554649,1771939115219,500.0,9.522e-05,2]
[406554650,1771939115263,500.0,9.522e-05,2]
[406554651,1771939115309,158.17120277,9.522e-05,2]
[406554652,1771939115332,341.82879723,9.522e-05,2]
[406554653,1771939115380,500.0,9.522e-05,2]
[406554654,1771939115410,500.0,9.522e-05,2]
[406554655,1771939115440,500.0,9.522e-05,2]
[406554656,1771939115471,500.0,9.522e-05,2]
[406554657,1771939115519,500.0,9.522e-05,2]
[406554658,1771939115578,500.0,9.522e-05,2]
[406554659,1771939117638,-1135.83,9.523e-05,2]
[406554660,1771939117693,-10000.01,9.523e-05,2]
[406554661,1771939117808,-10000.01,9.523e-05,2]
[406554662,1771939117915,-10000.01,9.523e-05,2]
[406554663,1771939118033,-10000.01,9.523e-05,2]
[406554664,1771939120391,-10000.01,9.523e-05,2]
[406554665,1771939120588,-10000.01,9.523e-05,2]
[406554666,1771939120779,-10000.01,9.523e-05,2]
[406554667,1771939132706,500.0,9.522e-05,2]
[406554668,1771939132736,500.0,9.522e-05,2]
[406554669,1771939132781,500.0,9.522e-05,2]
[406554670,1771939143030,158.18120277,9.522e-05,2]
[406554671,1771939143053,4979.91316187,9.522e-05,2]
[406554672,1771939143082,20.09683813,9.522e-05,2]
[406554673,1771939143102,526.55876721,9.522e-05,2]
[406554674,1771939143140,1279.02931103,9.522e-05,2]
[406554675,1771939143211,2754.33559866,9.522e-05,2]
[406554676,1771939201154,300.0,9.522e-05,2]
[406554677,1771939201206,300.0,9.522e-05,2]
[406554678,1771939202043,1200.0,9.522e-05,2]
[406554679,1771939262570,300.0,9.522e-05,2]
[406554680,1771939280046,500.0,9.522e-05,2]
[406554681,1771939280110,500.0,9.522e-05,2]
[406554682,1771939280154,500.0,9.522e-05,2]
[406554683,1771939280203,413.48622252,9.522e-05,2]
[406554684,1771939292854,2384.657,9.332e-05,2]
[406554685,1771939292978,197.003,9.332e-05,2]
[406554686,1771939305659,-4242.92849987,9.523e-05,2]
[406554687,1771939305741,-5000.01,9.523e-05,2]
[406554688,1771939305819,-5000.01,9.523e-05,2]
[406554689,1771939305954,-5000.01,9.523e-05,2]
[406554690,1771939306417,-5000.01,9.523e-05,2]
[406554691,1771939308611,-5000.01,9.523e-05,2]
[406554692,1771939308742,-5000.01,9.523e-05,2]
[406554693,1771939308808,-5000.01,9.523e-05,2]
[406554694,1771939308913,-5000.01,9.523e-05,2]
[406554695,1771939309019,-5000.01,9.523e-05,2]
[406554696,1771939311803,-5000.01,9.523e-05,2]
[406554697,1771939311991,-5000.01,9.523e-05,2]
[406554698,1771939312202,-5000.01,9.523e-05,2]
[406554699,1771939312319,-5000.01,9.523e-05,2]
[406554700,1771939312436,-5000.01,9.523e-05,2]
[406554701,1771939315494,-5000.01,9.523e-05,2]
[406554702,1771939315660,-5000.01,9.523e-05,2]
[406554703,1771939325540,150.0,9.523e-05,3]
[406554705,1771939366885,203.726052,9.5e-05,2]
[406554706,1771939390645,150.0,9.5e-05,3]
[406554707,1771939401445,-6082.79772548,9.523e-05,2]
[406554708,1771939401586,-10000.01,9.523e-05,2]
[406554709,1771939401712,-10000.01,9.523e-05,2]
[406554710,1771939401864,-10000.01,9.523e-05,2]
[406554711,1771939410706,-2500.0,9.523e-05,2]
[406554712,1771939410800,-4050.7198,9.523e-05,2]
[406554713,1771939410840,-949.2902,9.523e-05,2]
[406554714,1771939410854,-949.2802,9.523e-05,2]
[406554715,1771939410864,-5000.01,9.523e-05,2]
[406554716,1771939410919,-10000.01,9.523e-05,2]
[406554717,1771939410966,-10000.01,9.523e-05,2]
[406554718,1771939429388,10000.01,9.513e-05,2]
[406554719,1771939429411,10000.01,9.513e-05,2]
[406554720,1771939442911,300.0,9.512e-05,2]
[406554721,1771939444385,2606.0,9.507e-05,2]
[406554722,1771939444678,150.0,9.513e-05,3]
[406554723,1771939501215,300.0,9.512e-05,2]
[406554724,1771939501769,1200.0,9.512e-05,2]
[406554725,1771939507122,150.0,9.513e-05,3]
[406554726,1771939516957,251.86,9.5e-05,2]
[406554729,1771939561787,300.0,9.512e-05,2]
[406554730,1771939561819,5342.15,8e-05,2]
[406554731,1771939561841,875.14846143,8e-05,2]
[406554732,1771939567760,150.0,9.513e-05,3]
[406554734,1771939627684,150.0,9.513e-05,3]
[406554736,1771939635772,9970.12,0.00013172,7]
[406554738,1771939658210,5000.01,8.885e-05,2]
[406554739,1771939658233,3913.41,8.885e-05,2]
[406554740,1771939663279,10000.01,8.885e-05,2]
[406554741,1771939663303,10000.01,8.885e-05,2]
[406554742,1771939663323,1086.6,8.885e-05,2]
[406554743,1771939663345,10000.01,8.885e-05,2]
[406554744,1771939663367,10000.01,8.885e-05,2]
[406554745,1771939663388,5000.01,8.885e-05,2]
[406554746,1771939663408,5000.01,8.885e-05,2]
[406554747,1771939663432,17570.35,8.885e-05,2]
[406554748,1771939686752,150.0,8.885e-05,3]
[406554752,1771939725569,500.0,8.842e-05,2]
[406554754,1771939747247,151.0,8.842e-05,3]
[406554755,1771939756901,-4081.66,9.107e-05,2]
[406554756,1771939771902,-1302.0,9.507e-05,2]
[406554757,1771939787037,-1200.0,9.512e-05,2]
[406554758,1771939787069,-300.0,9.512e-05,2]
[406554759,1771939801598,1200.0,9.512e-05,2]
[406554760,1771939805190,-7624.86153857,9.513e-05,2]
[406554761,1771939805339,-3038.98846143,9.513e-05,2]
[406554762,1771939807948,151.0,9.512e-05,3]
[406554763,1771939818353,-260.07067144,9.517e-05,2]
[406554772,1771939831991,-150.0,9.521e-05,2]
[406554774,1771939832004,-410.87669946,9.522e-05,2]
[406554779,1771939832244,-89.12330054,9.522e-05,2]
[406554780,1771939832254,-161.814106,9.522e-05,2]
[406554781,1771939832265,-184.51941363,9.522e-05,2]
[406554782,1771939832274,-384.61227679,9.522e-05,2]
[406554784,1771939832285,-167.42007153,9.522e-05,2]
[406554786,1771939832294,-552.03234832,9.522e-05,2]
[406554788,1771939832303,-552.03234832,9.522e-05,2]
[406554789,1771939832312,-552.03234832,9.522e-05,2]
[406554790,1771939832321,-552.03234832,9.522e-05,2]
[406554791,1771939832330,-552.03234832,9.522e-05,2]
[406554792,1771939832340,-552.03234832,9.522e-05,2]
[406554793,1771939832349,-552.03234832,9.522e-05,2]
[406554794,1771939832358,-552.03234832,9.522e-05,2]
[406554795,1771939832367,-348.74969996,9.522e-05,2]
[406554796,1771939832390,-203.28264836,9.522e-05,2]
[406554797,1771939832399,-552.03234832,9.522e-05,2]
[406554798,1771939832408,-552.03234832,9.522e-05,2]
[406554799,1771939832417,-552.03234832,9.522e-05,2]
[406554800,1771939832426,-552.03234832,9.522e-05,2]
[406554801,1771939832435,-552.03234832,9.522e-05,2]
[406554802,1771939832444,-552.03234832,9.522e-05,2]
[406554803,1771939832457,-552.03234832,9.522e-05,2]
[406554804,1771939832466,-552.03234832,9.522e-05,2]
[406554805,1771939832474,-552.03234832,9.522e-05,2]
[406554806,1771939832483,-552.03234832,9.522e-05,2]
[406554807,1771939832492,-552.03234832,9.522e-05,2]
[406554808,1771939832501,-552.03234832,9.522e-05,2]
[406554809,1771939832510,-552.03234832,9.522e-05,2]
[406554810,1771939832519,-552.03234832,9.522e-05,2]
[406554811,1771939832527,-552.03234832,9.522e-05,2]
[406554812,1771939832536,-552.03234832,9.522e-05,2]
[406554813,1771939832545,-552.03234832,9.522e-05,2]
[406554814,1771939832555,-552.03234832,9.522e-05,2]
[406554815,1771939832564,-552.03234832,9.522e-05,2]
[406554816,1771939832576,-552.03234832,9.522e-05,2]
[406554817,1771939832586,-552.03234832,9.522e-05,2]
[406554818,1771939832595,-552.03234832,9.522e-05,2]
[406554819,1771939832604,-552.03234832,9.522e-05,2]
[406554820,1771939832613,-552.03234832,9.522e-05,2]
[406554821,1771939832622,-552.03234832,9.522e-05,2]
[406554822,1771939832631,-552.03234832,9.522e-05,2]
[406554823,1771939832640,-552.03234832,9.522e-05,2]
[406554824,1771939832649,-552.03234832,9.522e-05,2]
[406554825,1771939832658,-552.03234832,9.522e-05,2]
[406554826,1771939832667,-552.03234832,9.522e-05,2]
[406554827,1771939832676,-552.03234832,9.522e-05,2]
[406554828,1771939832685,-552.03234832,9.522e-05,2]
[406554829,1771939832698,-552.03234832,9.522e-05,2]
[406554830,1771939832707,-552.03234832,9.522e-05,2]
[406554831,1771939832716,-552.03234832,9.522e-05,2]
[406554832,1771939832725,-552.03234832,9.522e-05,2]
[406554833,1771939832734,-552.03234832,9.522e-05,2]
[406554834,1771939832743,-552.03234832,9.522e-05,2]
[406554835,1771939832752,-552.03234832,9.522e-05,2]
[406554836,1771939832761,-552.03234832,9.522e-05,2]
[406554837,1771939832771,-552.03234832,9.522e-05,2]
[406554838,1771939832780,-552.03234832,9.522e-05,2]
[406554839,1771939832789,-621.03639186,9.522e-05,2]
[406554840,1771939832798,-621.03639186,9.522e-05,2]
[406554841,1771939832807,-621.03639186,9.522e-05,2]
[406554842,1771939832816,-621.03639186,9.522e-05,2]
[406554843,1771939832826,-621.03639186,9.522e-05,2]
[406554844,1771939832835,-621.03639186,9.522e-05,2]
[406554845,1771939832843,-621.03639186,9.522e-05,2]
[406554846,1771939832853,-621.03639186,9.522e-05,2]
[406554847,1771939832862,-621.03639186,9.522e-05,2]
[406554848,1771939832871,-621.03639186,9.522e-05,2]
[406554849,1771939832879,-621.03639186,9.522e-05,2]
[406554850,1771939832888,-621.03639186,9.522e-05,2]
[406554851,1771939832898,-621.03639186,9.522e-05,2]
[406554852,1771939832907,-621.03639186,9.522e-05,2]
[406554853,1771939832916,-621.03639186,9.522e-05,2]
[406554854,1771939832925,-621.03639186,9.522e-05,2]
[406554855,1771939832934,-621.03639186,9.522e-05,2]
[406554856,1771939832943,-621.03639186,9.522e-05,2]
[406554857,1771939832952,-621.03639186,9.522e-05,2]
[406554858,1771939832961,-621.03639186,9.522e-05,2]
[406554859,1771939832970,-621.03639186,9.522e-05,2]
[406554860,1771939832979,-621.03639186,9.522e-05,2]
[406554861,1771939832988,-621.03639186,9.522e-05,2]
[406554862,1771939832997,-621.03639186,9.522e-05,2]
[406554863,1771939833006,-621.03639186,9.522e-05,2]
[406554864,1771939833015,-621.03639186,9.522e-05,2]
[406554865,1771939833025,-621.03639186,9.522e-05,2]
[406554866,1771939833035,-621.03639186,9.522e-05,2]
[406554867,1771939833044,-621.03639186,9.522e-05,2]
[406554868,1771939833053,-621.03639186,9.522e-05,2]
[406554869,1771939833062,-621.03639186,9.522e-05,2]
[406554870,1771939833071,-621.03639186,9.522e-05,2]
[406554871,1771939833080,-500.0,9.522e-05,2]
[406554872,1771939833089,-378.28023991,9.522e-05,2]
[406554873,1771939833099,-500.0,9.522e-05,2]
[406554874,1771939833108,-260.68194257,9.522e-05,2]
[406554875,1771939833116,-500.0,9.522e-05,2]
[406554876,1771939833126,-474.02245772,9.522e-05,2]
[406554877,1771939833135,-401.09966005,9.522e-05,2]
[406554878,1771939833143,-920.81432704,9.522e-05,2]
[406554879,1771939833153,-916.35022247,9.522e-05,2]
[406554880,1771939833162,-953.3532,9.523e-05,2]
[406554881,1771939833172,-6740.8241,9.523e-05,2]
[406554882,1771939833184,-344.89639208,9.6e-05,2]
[406554883,1771939833193,-539.7927842,9.6e-05,2]
[406554884,1771939833203,-1000.0,9.624e-05,2]
[406554885,1771939833213,-12211.7090733,9.667e-05,2]
[406554886,1771939833226,-3739.89258961,9.667e-05,2]
[406554887,1771939838092,-14989.88328463,9.667e-05,2]
[406554888,1771939838105,-324544.57944606,9.667e-05,2]
[406554889,1771939838115,-378.17736633,9.776e-05,2]
[406554890,1771939838125,-500.0,9.776e-05,2]
[406554891,1771939838134,-412.78932735,9.776e-05,2]
[406554893,1771939838144,-500.0,9.776e-05,2]
[406554895,1771939838154,-500.0,9.776e-05,2]
[406554896,1771939838163,-500.0,9.776e-05,2]
[406554897,1771939838173,-500.0,9.776e-05,2]
[406554898,1771939838186,-500.0,9.776e-05,2]
[406554899,1771939838195,-427.2864197,9.776e-05,2]
[406554900,1771939838204,-272386.00232064,9.777e-05,2]
[406554901,1771939838213,-500.0,9.796e-05,2]
[406554902,1771939838223,-366.0,9.807e-05,2]
[406554903,1771939838232,-436.0,9.826e-05,2]
[406554904,1771939838240,-468.0,9.846e-05,2]
[406554905,1771939838250,-1265.0,9.863e-05,2]
[406554906,1771939838259,-292.02200372,9.865e-05,2]
[406554907,1771939838270,-205.0,9.882e-05,2]
[406554908,1771939838279,-1195.4,9.887e-05,2]
[406554909,1771939838288,-200.0,9.887e-05,2]
[406554910,1771939838297,-600.98,9.887e-05,2]
[406554911,1771939838306,-4296.28,9.887e-05,2]
[406554913,1771939838320,-9999.99,9.887e-05,2]
[406554914,1771939838329,-9999.99,9.887e-05,2]
[406554915,1771939838339,-1613.61,9.887e-05,2]
[406554916,1771939838349,-150.99,9.887e-05,2]
[406554917,1771939838358,-1413.37,9.887e-05,2]
[406554918,1771939838368,-5919.05,9.887e-05,2]
[406554919,1771939838378,-9999.99,9.887e-05,2]
[406554920,1771939838387,-9999.99,9.887e-05,2]
[406554921,1771939838397,-299.99,9.887e-05,2]